bitfinex/quotes_ETHUSD_20251010
["timestamp","ask_amount","ask_price","bid_price","bid_amount"]
[1760106192108,2.77511576,4336.4,4336.1,1e-08]
[1760106193204,2.77431576,4336.4,4336.1,1e-08]
[1760106193617,0.446,4336.4,4336.1,1e-08]
[1760106193921,2.77511576,4336.4,4336.1,1e-08]
[1760106194854,0.446,4336.4,4336.1,1e-08]
[1760106195051,0.02305544,4336.4,4336.1,1e-08]
[1760106195238,0.446,4337.0,4336.1,1e-08]
[1760106195440,2.32889609,4336.9,4336.1,2.30620632]
[1760106195621,0.02305544,4336.9,4336.1,2.30620632]
[1760106195817,0.02305544,4336.9,4336.1,1e-08]
[1760106196058,2.305943,4336.7,4336.1,1e-08]
[1760106196241,2.30605001,4336.5,4336.1,1e-08]
[1760106196554,2.3061135,4336.3,4336.1,1e-08]
[1760106196850,2.3061135,4336.3,4335.6,0.003]
[1760106196851,2.30643264,4335.7,4335.6,0.003]
[1760106197017,4.73410033,4335.7,4335.6,0.003]
[1760106197217,5.15394489,4335.7,4335.6,0.003]
[1760106197665,1.92,4335.6,4335.1,0.01]
[1760106197862,2.30669865,4335.2,4335.1,0.01]
[1760106198071,4.7113109,4335.2,4335.1,0.01]
[1760106198368,4.7113109,4335.2,4333.1,0.03307816]
[1760106198369,0.6336,4334.8,4333.1,0.01]
[1760106198520,2.54126331,4333.2,4333.1,0.01]
[1760106198717,2.54126331,4333.2,4331.8,0.003]
[1760106198718,1.92,4333.1,4331.8,0.003]
[1760106198928,0.62811044,4333.0,4331.8,0.003]
[1760106199129,2.30813106,4332.6,4331.8,0.003]
[1760106199328,0.48461225,4332.7,4331.8,0.003]
[1760106199527,0.428,4332.5,4331.8,0.003]
[1760106199946,0.428,4332.9,4331.9,2.30844452]
[1760106200150,0.02305544,4332.8,4331.8,0.003]
[1760106200345,0.428,4332.4,4331.8,0.003]
[1760106200621,2.73618945,4332.4,4331.8,0.003]
[1760106200821,2.75924489,4332.4,4331.8,0.003]
[1760106201129,4.67924489,4332.4,4331.8,0.003]
[1760106202257,2.37105544,4332.4,4331.8,0.003]
[1760106202562,4.65618945,4332.4,4332.3,0.004]
[1760106202735,4.67924489,4332.4,4332.3,0.004]
[1760106203062,5.14716938,4332.4,4332.3,0.004]
[1760106203266,5.12411394,4332.4,4332.3,0.004]
[1760106204359,2.348,4332.4,4332.3,0.004]
[1760106204661,4.65618945,4332.4,4332.3,0.004]
[1760106204864,4.67924489,4332.4,4332.3,0.004]
[1760106206124,2.37105544,4332.4,4332.3,0.004]
[1760106206321,4.65618945,4332.4,4332.3,0.004]
[1760106206546,4.86189601,4332.2,4332.1,1e-08]
[1760106206720,5.34046315,4332.2,4332.1,1e-08]
[1760106206934,5.76846315,4332.2,4332.1,1e-08]
[1760106207521,5.13486315,4332.2,4332.1,1e-08]
[1760106207963,0.428,4332.2,4332.1,1e-08]
[1760106210261,0.72467547,4332.2,4332.1,1e-08]
[1760106210439,2.75935145,4332.2,4332.1,1e-08]
[1760106210841,4.67935145,4332.2,4332.1,1e-08]
[1760106211633,5.31295145,4332.2,4332.1,1e-08]
[1760106211830,5.76831009,4332.2,4332.1,1e-08]
[1760106212034,5.76831009,4332.2,4331.8,0.003]
[1760106212035,0.6336,4331.9,4331.8,1e-08]
[1760106212282,20.00792802,4331.9,4331.8,1e-08]
[1760106212486,20.89027206,4331.9,4331.8,1e-08]
[1760106214448,20.8895107,4331.9,4331.8,1e-08]
[1760106214649,20.41187258,4331.9,4331.8,1e-08]
[1760106215376,20.41107258,4331.9,4331.8,1e-08]
[1760106215986,2.30898889,4330.9,4330.1,0.01]
[1760106216184,0.0185678,4331.0,4330.9,2.30898889]
[1760106216394,0.0185678,4331.0,4330.7,2.30908977]
[1760106216557,0.45005544,4330.9,4330.1,0.01]
[1760106217099,0.45005544,4330.9,4330.1,2.31936531]
[1760106217383,0.45005544,4330.9,4330.5,2.30918027]
[1760106217588,0.427,4330.8,4330.5,2.30918027]
[1760106217886,0.45005544,4330.7,4330.1,0.01]
[1760106218582,0.45005544,4330.7,4330.3,2.30930736]
[1760106218768,0.45005544,4330.7,4330.1,0.01]
[1760106218769,0.02305544,4330.7,4330.4,2.30923436]
[1760106218968,0.02305544,4330.9,4330.4,2.30923436]
[1760106219188,0.02305544,4330.9,4330.1,2.31941006]
[1760106219189,0.427,4330.8,4330.5,2.30920117]
[1760106219483,0.02305544,4330.7,4330.5,2.30920117]
[1760106219704,0.0185678,4331.0,4330.7,2.30908545]
[1760106219705,0.02305544,4330.9,4330.7,2.30908545]
[1760106219846,0.0185678,4331.0,4330.1,2.3194076]
[1760106220045,0.0185678,4331.0,4330.4,2.30924342]
[1760106220261,0.0185678,4331.0,4330.2,0.27600076]
[1760106220262,0.0185678,4331.0,4330.6,2.30913563]
[1760106220498,0.427,4330.9,4330.1,0.01]
[1760106220645,0.02305544,4330.8,4330.1,0.01]
[1760106220851,0.427,4330.9,4330.1,0.01]
[1760106221080,0.02305544,4330.8,4330.4,2.30922935]
[1760106221799,0.45005544,4330.8,4330.5,2.30918606]
[1760106221994,0.45005544,4330.8,4330.2,2.30936215]
[1760106221995,0.45005544,4330.8,4330.4,2.77207741]
[1760106222349,0.45005544,4330.8,4330.5,2.30919944]
[1760106222554,0.0185678,4331.0,4330.6,0.001]
[1760106222954,0.4455678,4331.0,4330.6,0.001]
[1760106223154,0.02305544,4330.9,4330.6,2.31014559]
[1760106223458,0.02305544,4330.9,4330.6,2.77208784]
[1760106223685,0.0185678,4331.0,4330.6,0.4629396]
[1760106223888,0.0185678,4331.0,4330.9,2.30898889]
[1760106224491,0.0185678,4331.0,4330.9,2.74958889]
[1760106225555,0.0185678,4331.0,4330.9,2.30898889]
[1760106225881,0.0185678,4331.0,4330.9,0.1152]
[1760106226086,0.4799678,4331.0,4330.6,0.1162]
[1760106226284,0.0185678,4331.0,4330.6,0.1162]
[1760106226451,0.4614,4330.9,4330.6,0.1162]
[1760106226657,0.02305544,4330.8,4330.6,0.1162]
[1760106226856,0.4614,4330.8,4330.6,0.1162]
[1760106227598,0.0185678,4331.0,4330.6,2.42534011]
[1760106227801,0.02305544,4330.9,4330.7,2.30909552]
[1760106227999,0.0185678,4331.0,4330.8,0.1152]
[1760106228323,0.0185678,4331.0,4330.8,2.42422475]
[1760106228516,0.0185678,4331.0,4330.6,0.47446256]
[1760106228517,0.0185678,4331.0,4330.9,2.30898889]
[1760106228690,0.0185678,4331.0,4330.9,2.9334405]
[1760106229412,0.0185678,4331.0,4330.9,2.9434405]
[1760106230012,0.0185678,4331.0,4330.9,0.1252]
[1760106230180,0.4766678,4331.0,4330.9,0.1252]
[1760106230382,0.0185678,4331.0,4330.9,0.1252]
[1760106232083,0.0185678,4331.0,4330.9,2.43418889]
[1760106232470,0.0185678,4331.0,4330.9,0.5676]
[1760106232698,0.3917678,4331.0,4330.9,0.1252]
[1760106232870,0.0185678,4331.0,4330.9,0.1252]
[1760106233423,0.0185678,4331.0,4330.9,0.01]
[1760106233424,2.70070338,4331.0,4330.9,0.01]
[1760106233571,2.72375882,4331.0,4330.9,0.01]
[1760106233773,3.20635977,4331.0,4330.9,0.01]
[1760106234109,0.87436875,4331.0,4330.9,0.01]
[1760106234408,3.20635977,4331.0,4330.9,0.01]
[1760106237344,3.20555977,4331.0,4330.9,0.01]
[1760106238095,4.0126425,4331.0,4330.9,0.01]
[1760106240712,5.9326425,4331.0,4330.9,0.01]
[1760106240908,5.10250433,4331.0,4330.9,0.01]
[1760106241120,21.27134514,4331.0,4330.9,0.01]
[1760106241321,18.14072104,4331.0,4330.9,0.01]
[1760106242002,19.35134514,4331.0,4330.9,0.01]
[1760106242238,19.35134514,4331.0,4330.1,1e-08]
[1760106242239,2.30936215,4330.2,4330.1,1e-08]
[1760106242437,0.6336,4330.1,4329.1,0.01]
[1760106242654,2.30989559,4329.2,4329.1,0.01]
[1760106242841,2.33295103,4329.2,4329.1,0.01]
[1760106243062,3.18875198,4329.2,4329.1,0.01]
[1760106243273,2.70615103,4329.2,4329.1,0.01]
[1760106243447,0.87885639,4329.2,4329.1,0.01]
[1760106243640,0.39625544,4329.2,4329.1,0.01]
[1760106244041,2.70615103,4329.2,4329.1,0.01]
[1760106244282,0.60293405,4329.8,4329.1,0.01]
[1760106244589,0.3732,4330.9,4329.6,0.001]
[1760106244752,2.30919058,4330.6,4329.7,2.30962884]
[1760106244938,0.3732,4330.5,4329.6,0.001]
[1760106245539,0.3732,4330.5,4329.8,2.30953514]
[1760106245739,0.3909678,4331.0,4329.9,0.23105351]
[1760106246001,0.3909678,4331.0,4330.3,2.30930202]
[1760106246381,0.3909678,4331.0,4329.6,0.001]
[1760106246539,2.30908864,4330.8,4329.6,2.31067039]
[1760106246736,2.30908864,4330.8,4330.0,2.30945219]
[1760106246941,2.69995393,4331.0,4330.1,2.30939893]
[1760106247142,2.69995393,4331.0,4330.1,2.77129037]
[1760106247337,0.3909678,4331.0,4330.1,0.46189144]
[1760106247585,0.0177678,4331.0,4330.2,0.71989362]
[1760106247740,0.0177678,4331.0,4330.2,0.6968]
[1760106247945,0.0177678,4331.0,4330.9,2.30898889]
[1760106248737,0.0177678,4331.0,4330.9,2.78258889]
[1760106248944,0.0177678,4331.0,4330.9,2.80567877]
[1760106249140,0.0177678,4331.0,4330.9,0.51147685]
[1760106249441,0.0177678,4331.0,4329.9,0.4736]
[1760106249674,0.0177678,4331.0,4329.1,0.32793166]
[1760106249899,2.30922422,4330.5,4329.1,0.01]
[1760106250113,2.30929687,4330.4,4329.1,0.01]
[1760106250304,2.30925549,4330.4,4329.5,2.30968755]
[1760106250476,0.3702,4330.3,4329.1,0.01]
[1760106250907,2.30962884,4329.7,4329.1,0.01]
[1760106251111,2.30958163,4329.8,4329.1,0.01]
[1760106251489,2.67978163,4329.8,4329.1,0.01]
[1760106251813,2.30962884,4329.7,4329.1,0.01]
[1760106252000,0.3702,4330.3,4329.2,2.30988832]
[1760106252208,0.3702,4330.3,4329.1,0.01]
[1760106252209,0.3702,4330.3,4329.1,2.31993683]
[1760106252406,2.67952305,4330.3,4329.3,2.3098306]
[1760106252583,0.3702,4330.3,4329.1,2.31994334]
[1760106252780,2.30958687,4329.8,4329.1,0.01]
[1760106253010,0.3702,4330.3,4329.1,0.01]
[1760106253214,2.67982884,4329.7,4329.1,0.01]
[1760106254702,0.3702,4329.7,4329.1,0.01]
[1760106255021,2.67982884,4329.7,4329.1,0.01]
[1760106256489,4.59982884,4329.7,4329.1,0.01]
[1760106257711,2.30946882,4330.0,4329.1,0.01]
[1760106257917,2.30962884,4329.7,4329.1,0.01]
[1760106258215,1.92,4329.9,4329.1,0.01]
[1760106258216,0.1152,4329.8,4329.1,0.01]
[1760106258424,0.1152,4329.8,4329.4,2.30973825]
[1760106258580,0.1152,4329.8,4329.1,0.03309948]
[1760106258581,0.1152,4329.8,4329.6,0.23207383]
[1760106258783,0.1152,4330.5,4329.8,2.30955569]
[1760106259000,0.1152,4330.5,4329.8,2.3095322]
[1760106259327,0.1152,4330.5,4329.8,2.3095755]
[1760106259623,0.3702,4330.4,4329.6,0.001]
[1760106259986,2.67946076,4330.4,4329.6,0.001]
[1760106260190,2.30947256,4330.0,4329.6,0.001]
[1760106260507,2.30962884,4329.7,4329.6,0.001]
[1760106260914,2.67982884,4329.7,4329.6,0.001]
[1760106261601,0.3702,4329.7,4329.6,0.001]
[1760106261932,2.2902,4330.3,4329.6,0.001]
[1760106262220,2.30955303,4329.9,4329.6,0.001]
[1760106262428,0.3702,4330.3,4329.6,0.001]
[1760106262728,2.67972951,4329.9,4329.6,0.001]
[1760106263027,2.30941344,4330.2,4329.6,0.001]
[1760106263194,4.22941344,4330.2,4329.6,0.001]
[1760106263530,0.0177678,4331.0,4329.6,0.001]
[1760106263531,0.3702,4330.8,4329.6,0.001]
[1760106263724,0.0177678,4331.0,4329.7,0.4736]
[1760106263924,2.3091452,4330.7,4329.9,2.30947763]
[1760106264232,2.67921672,4330.9,4330.0,0.23094776]
[1760106264402,2.30911312,4330.7,4329.8,2.30953272]
[1760106264602,0.3702,4330.9,4329.6,0.001]
[1760106264603,2.30927166,4330.4,4329.6,0.001]
[1760106264819,0.3702,4330.9,4329.6,0.001]
[1760106264820,2.2902,4330.9,4329.6,0.001]
[1760106265024,0.3702,4330.3,4329.6,0.001]
[1760106265243,2.30962884,4329.7,4329.6,0.001]
[1760106265818,2.67982884,4329.7,4329.6,0.001]
[1760106266010,2.30941091,4330.2,4329.6,0.001]
[1760106266216,2.30952695,4329.9,4329.6,0.001]
[1760106266444,0.3702,4330.2,4329.6,0.001]
[1760106267048,0.002,4330.5,4329.6,0.001]
[1760106267416,0.002,4330.5,4329.7,2.77582884]
[1760106267740,0.002,4330.5,4330.2,2.30935104]
[1760106267939,0.002,4330.5,4330.3,0.02309308]
[1760106268149,0.002,4330.5,4330.4,2.30925549]
[1760106268551,0.002,4330.5,4329.9,0.4662]
[1760106268715,0.002,4330.5,4330.4,2.30925549]
[1760106269046,0.002,4330.5,4330.4,0.461862]
[1760106269250,0.002,4330.5,4330.4,2.30925549]
[1760106269549,0.002,4330.5,4330.4,0.1152]
[1760106269751,0.002,4330.5,4330.1,0.1152]
[1760106270355,0.002,4330.5,4330.1,2.42460627]
[1760106270551,0.002,4330.5,4330.1,0.1152]
[1760106270848,0.002,4330.5,4330.1,2.42461491]
[1760106271016,0.002,4330.5,4330.2,0.24246149]
[1760106271217,0.002,4330.5,4330.1,0.1152]
[1760106271417,0.002,4330.5,4330.1,2.42460241]
[1760106271614,0.002,4330.5,4330.1,0.1152]
[1760106272253,0.002,4330.5,4330.2,2.30933633]
[1760106272455,0.002,4330.5,4330.4,2.30925549]
[1760106272751,0.002,4330.5,4330.4,2.66921035]
[1760106272957,0.002,4330.5,4329.6,0.001]
[1760106273157,0.002,4330.5,4329.6,2.31067658]
[1760106273451,0.002,4330.5,4329.7,0.4662]
[1760106273655,0.002,4330.5,4329.8,2.33267125]
[1760106273854,0.002,4330.5,4330.4,2.30925549]
[1760106274035,1.925,4330.5,4330.4,2.79420854]
[1760106274229,1.925,4330.5,4330.4,3.23731599]
[1760106275428,0.002,4330.5,4330.4,3.87091599]
[1760106275631,0.002,4331.1,4330.4,3.87091599]
[1760106275632,0.002,4331.1,4331.0,2.30893558]
[1760106275829,0.002,4331.1,4331.0,2.94253558]
[1760106276058,0.002,4331.1,4331.0,5.3625209]
[1760106276953,0.002,4331.1,4331.0,3.40873558]
[1760106278256,1e-08,4331.6,4331.5,2.94226905]
[1760106278626,1e-08,4331.6,4331.5,3.40846905]
[1760106279887,1e-08,4331.6,4331.5,2.77486905]
[1760106280097,1.92300001,4331.6,4331.5,2.30866905]
[1760106280263,1.92300001,4331.6,4331.1,0.4662]
[1760106280464,1.92300001,4331.6,4329.2,0.69385258]
[1760106280465,1.92300001,4331.6,4330.1,0.4662]
[1760106280679,1.92300001,4331.6,4331.2,2.30881932]
[1760106280878,1.92300001,4331.6,4331.3,0.4662]
[1760106281091,1.92300001,4331.6,4330.9,0.02308988]
[1760106281388,1.92300001,4331.6,4329.8,0.45215157]
[1760106281389,1.92220001,4331.6,4330.8,0.4662]
[1760106281759,1.92220001,4331.6,4330.2,0.4662]
[1760106282256,1.92220001,4331.6,4329.6,0.001]
[1760106282257,1.92220001,4331.6,4330.9,2.30897248]
[1760106282793,3.523,4331.5,4331.0,2.30891428]
[1760106282965,3.523,4331.5,4331.4,2.30872235]
[1760106283290,0.01,4331.9,4331.5,0.1152]
[1760106283496,5.446,4331.8,4331.5,0.1152]
[1760106283791,7.75451596,4331.8,4331.5,0.1152]
[1760106284091,0.002,4331.6,4331.5,0.1152]
[1760106284394,5.448,4331.6,4331.5,0.1152]
[1760106284690,5.448,4331.6,4331.5,0.5814]
[1760106284893,5.448,4331.6,4331.5,0.1152]
[1760106285358,5.448,4331.6,4331.5,2.42386905]
[1760106285559,5.448,4331.6,4331.5,0.1152]
[1760106286257,5.448,4331.6,4331.5,2.89006905]
[1760106286592,0.002,4331.6,4331.5,3.31783691]
[1760106286891,0.002,4331.6,4331.5,0.98608117]
[1760106287097,0.002,4331.6,4331.5,2.77486905]
[1760106287508,5.448,4331.6,4331.5,0.4662]
[1760106287713,0.002,4331.6,4331.5,2.77486905]
[1760106287884,3.525,4331.6,4331.5,2.77486905]
[1760106288381,0.002,4331.6,4331.5,2.77486905]
[1760106288587,0.002,4331.6,4331.5,3.28323333]
[1760106290391,0.002,4331.6,4331.5,3.91683333]
[1760106291521,0.002,4331.6,4331.5,3.28323333]
[1760106292278,1.925,4331.6,4331.1,0.4619]
[1760106292480,1.925,4331.6,4331.5,2.30866905]
[1760106292820,5.447,4331.6,4331.5,2.30866905]
[1760106292979,5.447,4331.6,4331.5,2.77056905]
[1760106294387,0.002,4331.6,4331.5,2.77056905]
[1760106294595,5.447,4331.6,4331.5,3.2785024]
[1760106296723,5.447,4331.6,4330.5,0.4619]
[1760106297093,2.30871275,4331.5,4330.8,2.30899884]
[1760106297335,5.447,4331.6,4330.5,0.4619]
[1760106297489,5.447,4331.6,4330.9,2.30895175]
[1760106297679,5.447,4331.6,4331.0,2.30890439]
[1760106298319,5.447,4331.6,4330.7,0.4726]
[1760106298518,5.447,4331.6,4331.1,2.30887593]
[1760106298693,5.447,4331.6,4331.2,0.02308828]
[1760106299217,5.447,4331.6,4331.2,2.33190083]
[1760106299420,5.447,4331.6,4331.3,0.4726]
[1760106299623,3.521,4331.5,4331.4,2.33180957]
[1760106299788,0.002,4331.6,4331.5,2.78126905]
[1760106299993,5.446,4331.6,4331.5,2.78126905]
[1760106300189,5.446,4331.6,4330.3,0.2232]
[1760106300388,5.446,4331.6,4330.4,0.25325808]
[1760106300616,5.446,4331.6,4330.2,0.4726]
[1760106300617,0.0177678,4331.0,4330.3,2.30930628]
[1760106300827,3.521,4330.9,4330.1,0.2206]
[1760106301026,1.923,4330.8,4330.6,2.3091344]
[1760106301210,1.923,4330.8,4330.1,0.6932]
[1760106301419,2.3626,4330.8,4329.7,2.30962884]
[1760106301621,4.67165612,4330.8,4330.0,2.30945094]
[1760106301941,2.30909552,4330.7,4329.7,2.30962376]
[1760106302104,2.3626,4330.8,4329.8,2.30956373]
[1760106302438,0.4396,4330.7,4329.6,0.001]
[1760106302619,2.30946287,4330.1,4329.6,0.001]
[1760106302821,5.444,4330.0,4329.6,0.001]
[1760106303032,3.521,4329.9,4329.6,0.001]
[1760106303216,2.30962884,4329.7,4329.6,0.001]
[1760106303601,2.74842884,4329.7,4329.6,0.001]
[1760106304148,2.74922884,4329.7,4329.6,0.001]
[1760106304833,0.4396,4329.7,4329.6,0.001]
[1760106305035,5.445,4329.7,4329.6,0.001]
[1760106305195,6.4496,4330.1,4329.6,0.001]
[1760106305196,0.4396,4330.1,4329.6,0.001]
[1760106305532,5.17782081,4330.0,4329.6,0.001]
[1760106305698,2.30962884,4329.7,4329.6,0.001]
[1760106305899,0.4396,4329.9,4329.6,0.001]
[1760106306199,5.445,4329.8,4329.6,0.001]
[1760106306404,2.30962884,4329.7,4329.6,0.001]
[1760106306629,2.74922884,4329.7,4329.6,0.001]
[1760106307224,8.19422884,4329.7,4329.6,0.001]
[1760106307622,5.8846,4329.7,4329.6,0.001]
[1760106307822,2.74922884,4329.7,4329.6,0.001]
[1760106308048,7.75462884,4329.7,4329.6,0.001]
[1760106308346,8.19422884,4329.7,4329.6,0.001]
[1760106309004,10.11422884,4329.7,4329.6,0.001]
[1760106309209,10.59452273,4329.7,4329.6,0.001]
[1760106309406,10.11422884,4329.7,4329.6,0.001]
[1760106309972,10.74782884,4329.7,4329.6,0.001]
[1760106310319,10.74782884,4329.7,4329.1,1e-08]
[1760106310320,2.30984223,4329.3,4329.1,1e-08]
[1760106310529,7.75189559,4329.2,4329.1,1e-08]
[1760106310733,4.66949559,4329.2,4329.1,1e-08]
[1760106311067,16.12549559,4329.2,4329.1,1e-08]
[1760106311516,8.19149559,4329.2,4329.1,1e-08]
[1760106311719,16.58342135,4329.2,4329.1,1e-08]
[1760106312152,5.12642135,4329.2,4329.1,1e-08]
[1760106312318,16.58342135,4329.2,4329.1,1e-08]
[1760106312718,16.58442135,4329.2,4329.1,1e-08]
[1760106314456,14.66042135,4329.2,4329.1,1e-08]
[1760106314632,16.58442135,4329.2,4329.1,1e-08]
[1760106314834,2.74949559,4329.2,4329.1,1e-08]
[1760106315035,1.924,4329.2,4329.1,1e-08]
[1760106315369,5.446,4329.2,4329.1,1e-08]
[1760106316046,5.8856,4329.2,4329.1,1e-08]
[1760106316249,5.446,4329.2,4329.1,1e-08]
[1760106316775,5.446,4329.2,4329.1,0.2310059]
[1760106316971,5.446,4329.2,4329.1,1e-08]
[1760106317485,5.446,4329.2,4329.1,0.47260001]
[1760106317690,5.446,4329.2,4329.1,1e-08]
[1760106318196,5.446,4329.2,4329.1,0.11520001]
[1760106318611,5.446,4329.2,4329.1,2.42514896]
[1760106318762,5.446,4329.2,4329.1,2.89866888]
[1760106319193,5.446,4329.2,4329.1,3.25606888]
[1760106319998,5.446,4329.2,4329.1,2.78346888]
[1760106320295,5.446,4329.2,4329.1,2.30994896]
[1760106320497,2.30910215,4330.7,4329.1,0.47260001]
[1760106320795,0.4496,4330.9,4329.1,0.47260001]
[1760106320796,7.75516803,4330.6,4329.2,0.02309895]
[1760106321099,7.35922228,4330.5,4329.8,2.30955137]
[1760106321318,0.4496,4330.9,4329.1,0.47260001]
[1760106321319,1.924,4330.4,4329.9,2.33260999]
[1760106321613,0.01,4330.9,4330.0,2.80515951]
[1760106321774,0.01,4330.9,4330.5,2.3091591]
[1760106321976,0.01,4330.9,4330.7,2.30908977]
[1760106322323,5.446,4330.8,4330.5,2.30916058]
[1760106322473,5.446,4330.8,4330.1,0.2206]
[1760106322474,5.446,4330.8,4330.6,2.30913867]
[1760106322672,5.446,4330.8,4329.9,0.233261]
[1760106322904,5.8856,4330.8,4329.6,0.001]
[1760106323116,5.8856,4330.8,4330.1,2.30937224]
[1760106323277,5.8856,4330.8,4330.2,2.30936074]
[1760106323477,5.446,4330.8,4330.2,2.30936074]
[1760106323722,5.446,4330.8,4330.2,2.30936112]
[1760106324020,5.446,4330.8,4329.6,0.4736]
[1760106324021,0.012,4330.9,4330.4,2.30925549]
[1760106324197,1.924,4330.7,4330.6,2.30914884]
[1760106324521,1.924,4330.7,4330.6,2.78174884]
[1760106325120,0.012,4330.9,4330.7,2.30909552]
[1760106325290,0.012,4330.9,4330.8,2.33213262]
[1760106325291,1.936,4330.9,4330.8,2.33213262]
[1760106325615,1.936,4330.9,4330.8,3.29302501]
[1760106325616,2.072,4330.9,4330.8,3.29302501]
[1760106325917,2.0712,4330.9,4330.8,3.29302501]
[1760106326527,0.002,4331.4,4330.9,2.30898889]
[1760106326722,0.002,4331.4,4331.3,2.30877565]
[1760106326909,0.002,4331.4,4331.3,2.3318634]
[1760106327097,0.002,4331.4,4331.3,3.29271022]
[1760106327420,1e-08,4331.6,4331.5,2.94226905]
[1760106327627,0.01,4332.9,4332.1,2.30834929]
[1760106327791,0.01,4332.9,4332.8,2.47627636]
[1760106327992,0.022,4332.9,4332.8,2.47627636]
[1760106328203,0.022,4332.9,4332.8,3.41448911]
[1760106328530,0.01,4333.9,4332.8,3.41448911]
[1760106328531,0.01,4333.9,4332.8,16.66054067]
[1760106328751,0.01,4333.9,4333.6,2.30752381]
[1760106328950,0.01,4333.9,4332.9,1.0703]
[1760106328951,0.01,4333.9,4332.9,0.4367]
[1760106329133,0.01,4333.9,4332.9,2.3079231]
[1760106329308,0.01,4333.9,4333.8,0.1152]
[1760106329514,5.454,4333.9,4333.8,2.42264381]
[1760106329714,5.454,4333.9,4333.8,2.85934381]
[1760106330034,5.454,4333.9,4333.8,0.1152]
[1760106330433,5.454,4333.9,4333.1,0.4367]
[1760106330606,5.454,4333.9,4332.8,0.1683]
[1760106330607,5.454,4333.9,4333.4,0.1152]
[1760106331055,5.454,4333.9,4333.2,2.3077576]
[1760106331056,3.52,4333.8,4333.0,2.30784154]
[1760106331220,3.52,4333.8,4333.7,0.1152]
[1760106331221,5.443,4333.8,4333.7,0.1152]
[1760106332053,5.443,4333.8,4333.7,2.85939705]
[1760106332607,5.443,4333.8,4333.7,0.1152]
[1760106332962,5.7754,4333.8,4331.9,0.4367]
[1760106333114,5.8906,4333.8,4333.1,0.1152]
[1760106333308,2.30756553,4333.6,4333.1,0.1152]
[1760106333551,5.8906,4333.8,4333.1,0.1152]
[1760106333752,14.94350768,4333.3,4331.1,0.4467]
[1760106333960,0.3324,4333.2,4331.1,0.4467]
[1760106334128,2.324,4333.1,4331.1,0.4467]
[1760106334335,0.55764,4333.2,4331.2,0.02308828]
[1760106334530,0.759,4333.1,4331.5,2.30866905]
[1760106334729,2.682,4333.0,4331.5,2.30866905]
[1760106334948,1.923,4332.9,4331.6,0.45978615]
[1760106335135,1.923,4332.9,4332.2,2.30829022]
[1760106335335,1.923,4332.9,4332.6,2.30803335]
[1760106335569,1.923,4332.9,4332.4,2.30815201]
[1760106335737,1.923,4332.9,4332.2,0.02308296]
[1760106336297,5.442,4332.8,4332.6,2.3080319]
[1760106336497,14.94350768,4334.7,4332.7,0.45978029]
[1760106336658,5.441,4333.8,4332.7,0.45978029]
[1760106336861,5.441,4333.8,4333.3,2.30769669]
[1760106337087,5.441,4333.8,4333.1,0.02307816]
[1760106337385,5.441,4333.8,4333.0,2.30781797]
[1760106337589,0.01,4333.9,4332.8,0.27679037]
[1760106337748,3.519,4333.7,4332.8,2.30797636]
[1760106337948,3.519,4333.7,4333.1,2.30780555]
[1760106338386,3.8514,4333.7,4332.1,0.4367]
[1760106338562,2.3075503,4333.6,4332.7,2.30802228]
[1760106338757,3.8514,4333.7,4331.3,2.94235288]
[1760106338758,5.82650271,4333.7,4332.9,2.30788681]
[1760106339054,5.44,4333.6,4333.0,0.45977869]
[1760106339379,5.44,4333.6,4333.4,2.3076372]
[1760106339682,5.44,4333.6,4333.0,0.4367]
[1760106339887,5.44,4333.6,4333.0,2.30784909]
[1760106340048,5.44,4333.6,4332.5,0.4367]
[1760106340252,0.01,4333.9,4333.5,2.30760355]
[1760106340484,0.01,4333.9,4332.7,2.30802963]
[1760106340685,0.01,4333.9,4332.6,0.02308082]
[1760106340686,2.601,4333.8,4332.8,0.27678105]
[1760106340987,2.601,4333.8,4332.9,0.4367]
[1760106341395,2.601,4333.8,4331.4,2.30869863]
[1760106341396,2.4751,4333.7,4331.1,0.01]
[1760106341593,14.94350768,4333.0,4331.1,0.01]
[1760106341792,2.30805482,4332.7,4331.2,0.4367]
[1760106341978,3.518,4332.6,4331.2,0.45978828]
[1760106342294,5.403,4332.5,4331.2,0.4367]
[1760106342502,0.4221,4333.2,4331.3,0.6336]
[1760106342680,0.4221,4333.2,4331.1,0.01]
[1760106342681,5.44,4333.1,4331.4,0.4367]
[1760106343002,0.01,4333.9,4331.6,0.6336]
[1760106343205,5.44,4333.8,4333.1,2.30781073]
[1760106343589,5.44,4333.8,4332.7,2.30802963]
[1760106343796,5.44,4333.8,4333.2,0.1152]
[1760106343981,0.002,4333.6,4333.2,0.1152]
[1760106344318,5.44,4333.5,4333.2,0.1152]
[1760106344524,5.44,4333.5,4332.6,0.4377]
[1760106344525,0.002,4333.6,4333.5,2.30760355]
[1760106344822,5.44,4333.4,4332.6,0.001]
[1760106344984,5.44,4333.4,4332.7,0.4367]
[1760106345170,5.44,4333.4,4333.3,0.1152]
[1760106345804,5.44,4333.4,4333.3,2.42291005]
[1760106346201,5.44,4333.4,4333.3,0.1152]
[1760106346402,5.44,4333.4,4333.3,2.42291005]
[1760106346803,5.44,4333.4,4333.3,0.1152]
[1760106347533,0.002,4333.6,4333.5,2.30760355]
[1760106347707,5.4402,4333.6,4333.5,2.30760355]
[1760106347870,5.4402,4333.6,4333.3,2.85961004]
[1760106348071,5.4402,4333.6,4333.3,0.1152]
[1760106348701,0.0012,4333.6,4333.5,2.30760355]
[1760106348919,0.0012,4333.6,4333.5,3.05731391]
[1760106349184,0.01,4333.9,4333.8,2.30744381]